fUSD/lending_fUSD_20250108
["ID","MTS","AMOUNT","RATE_DAILY","PERIOD"]
[348189686,1736374245358,-500.0,0.00011094,2]
[348189687,1736374245368,-500.0,0.00011094,2]
[348189688,1736374245379,-500.0,0.00011094,2]
[348189689,1736374245389,-2244.55,0.00011094,2]
[348189691,1736374245398,-1475.16,0.00011094,2]
[348189692,1736374245408,-500.0,0.00011094,2]
[348189693,1736374245417,-500.0,0.00011094,2]
[348189694,1736374245426,-500.0,0.00011094,2]
[348189695,1736374245437,-618.95,0.00011094,2]
[348189696,1736374245447,-500.0,0.00011094,2]
[348189697,1736374245457,-1755.78,0.00011094,2]
[348189698,1736374245467,-500.0,0.00011094,2]
[348189699,1736374245477,-1285.61,0.00011094,2]
[348189700,1736374245488,-2478.11,0.00011094,2]
[348189701,1736374245499,-500.0,0.00011094,2]
[348189702,1736374245509,-1061.59,0.00011094,2]
[348189703,1736374245519,-500.0,0.00011094,2]
[348189704,1736374245529,-299.10216994,0.00011094,2]
[348189705,1736374245539,-500.0,0.00011094,2]
[348189706,1736374245548,-500.0,0.00011094,2]
[348189707,1736374245557,-500.0,0.00011094,2]
[348189708,1736374245569,-500.0,0.00011094,2]
[348189709,1736374245581,-687.93,0.00011094,2]
[348189710,1736374245591,-500.0,0.00011094,2]
[348189711,1736374245601,-1106.22,0.00011094,2]
[348189712,1736374245611,-500.0,0.00011094,2]
[348189713,1736374245621,-2314.79,0.00011094,2]
[348189714,1736374245630,-500.0,0.00011094,2]
[348189715,1736374245640,-500.0,0.00011094,2]
[348189716,1736374245653,-500.0,0.00011094,2]
[348189717,1736374245662,-500.0,0.00011094,2]
[348189718,1736374245672,-500.0,0.00011094,2]
[348189719,1736374245682,-500.0,0.00011094,2]
[348189720,1736374245692,-500.0,0.00011094,2]
[348189721,1736374245702,-703.34,0.00011094,2]
[348189722,1736374245712,-500.0,0.00011094,2]
[348189723,1736374245722,-503.53,0.00011094,2]
[348189724,1736374245732,-857.32,0.00011094,2]
[348189725,1736374245741,-500.0,0.00011094,2]
[348189726,1736374245751,-500.0,0.00011094,2]
[348189727,1736374245760,-500.0,0.00011094,2]
[348189728,1736374245770,-1578.04,0.00011094,2]
[348189729,1736374245779,-500.0,0.00011094,2]
[348189730,1736374245789,-500.0,0.00011094,2]
[348189731,1736374245799,-500.0,0.00011094,2]
[348189732,1736374245808,-1098.41,0.00011094,2]
[348189733,1736374245817,-500.0,0.00011094,2]
[348189734,1736374245827,-500.0,0.00011094,2]
[348189735,1736374245836,-500.0,0.00011094,2]
[348189736,1736374245844,-500.0,0.00011094,2]
[348189737,1736374245853,-1348.88,0.00011094,2]
[348189738,1736374245862,-500.0,0.00011094,2]
[348189739,1736374245871,-500.0,0.00011094,2]
[348189740,1736374245881,-500.0,0.00011094,2]
[348189741,1736374245890,-566.61,0.00011094,2]
[348189742,1736374245900,-644.92,0.00011094,2]
[348189743,1736374245910,-837.69,0.00011095,2]
[348189744,1736374245919,-1266.37,0.00011095,2]
[348189745,1736374245928,-500.0,0.00011095,2]
[348189746,1736374245940,-787.11,0.00011095,2]
[348189747,1736374245950,-500.0,0.00011095,2]
[348189748,1736374245959,-1166.62,0.00011095,2]
[348189750,1736374245968,-500.0,0.00011095,2]
[348189752,1736374245978,-565.92,0.00011095,2]
[348189754,1736374245988,-601.53610565,0.00011095,2]
[348189756,1736374245998,-500.0,0.00011095,2]
[348189758,1736374246008,-519.1,0.00011095,2]
[348189760,1736374246017,-508.78,0.00011095,2]
[348189762,1736374246026,-500.0,0.00011095,2]
[348189769,1736374246084,-500.0,0.00011095,2]
[348189771,1736374246094,-500.0,0.00011095,2]
[348189773,1736374246103,-1205.93,0.00011095,2]
[348189775,1736374246113,-500.0,0.00011095,2]
[348189777,1736374246122,-500.0,0.00011095,2]
[348189779,1736374246131,-712.18,0.00011095,2]
[348189781,1736374246141,-500.0,0.00011095,2]
[348189783,1736374246150,-500.0,0.00011095,2]
[348189785,1736374246159,-612.36,0.00011095,2]
[348189787,1736374246169,-500.0,0.00011095,2]
[348189789,1736374246179,-500.0,0.00011095,2]
[348189792,1736374246191,-595.66,0.00011095,2]
[348189794,1736374246202,-2799.24,0.00011095,2]
[348189796,1736374246211,-548.18,0.00011095,2]
[348189798,1736374246221,-1302.79,0.00011095,2]
[348189800,1736374246231,-500.0,0.00011095,2]
[348189802,1736374246240,-500.0,0.00011095,2]
[348189804,1736374246249,-1038.02,0.00011095,2]
[348189805,1736374246258,-1613.85,0.00011095,2]
[348189807,1736374246268,-500.0,0.00011095,2]
[348189810,1736374246279,-1455.22,0.00011095,2]
[348189812,1736374246288,-500.0,0.00011095,2]
[348189814,1736374246298,-2149.02,0.00011095,2]
[348189815,1736374246308,-1224.29,0.00011095,2]
[348189818,1736374246317,-4333.65,0.00011095,2]
[348189820,1736374246327,-1960.58,0.00011095,2]
[348189821,1736374246336,-1063.62,0.00011095,2]
[348189823,1736374246345,-568.79,0.00011095,2]
[348189825,1736374246355,-2372.76,0.00011095,2]
[348189827,1736374246364,-500.0,0.00011095,2]
[348189828,1736374246374,-1185.4,0.00011095,2]
[348189829,1736374246383,-1874.57,0.00011095,2]
[348189830,1736374246392,-1217.99,0.00011095,2]
[348189831,1736374246402,-500.0,0.00011095,2]
[348189832,1736374246411,-500.0,0.00011095,2]
[348189833,1736374246421,-920.56,0.00011095,2]
[348189834,1736374246430,-2562.5,0.00011095,2]
[348189836,1736374246441,-500.0,0.00011133,2]
[348189837,1736374246449,-684.21,0.00011133,2]
[348189839,1736374246459,-1105.88,0.00011133,2]
[348189841,1736374246468,-812.69,0.00011133,2]
[348189843,1736374246477,-887.64,0.00011133,2]
[348189845,1736374246487,-500.0,0.00011133,2]
[348189847,1736374246497,-1000.0,0.00011133,2]
[348189849,1736374246507,-500.0,0.00011134,2]
[348189851,1736374246516,-1745.65,0.00011134,2]
[348189853,1736374246526,-1254.01,0.00011134,2]
[348189855,1736374246535,-1000.0,0.00011145,2]
[348189857,1736374246545,-202.76042521,0.00011233,2]
[348189859,1736374246554,-150.227652,0.0001125,2]
[348189861,1736374246564,-150.227651,0.0001125,2]
[348189863,1736374246574,-1174.54572332,0.00011344,2]
[348189865,1736374246587,-500.0,0.00011367,2]
[348189868,1736374246596,-500.0,0.00011367,2]
[348189869,1736374246605,-500.0,0.00011367,2]
[348189871,1736374246615,-1184.83,0.00011367,2]
[348189873,1736374246625,-2822.92,0.00011367,2]
[348189875,1736374246634,-791.42,0.00011367,2]
[348189877,1736374246644,-604.89,0.00011367,2]
[348189879,1736374246654,-500.0,0.00011367,2]
[348189881,1736374246662,-500.0,0.00011367,2]
[348189883,1736374246673,-2124.34,0.00011367,2]
[348189885,1736374246684,-1365.63,0.00011367,2]
[348189887,1736374246695,-500.0,0.00011367,2]
[348189889,1736374246706,-2596.48,0.00011367,2]
[348189891,1736374246718,-500.0,0.00011367,2]
[348189894,1736374246728,-689.69,0.00011367,2]
[348189896,1736374246737,-500.0,0.00011367,2]
[348189897,1736374246746,-1399.1,0.00011367,2]
[348189899,1736374246755,-816.75,0.00011367,2]
[348189901,1736374246764,-838.45,0.00011367,2]
[348189903,1736374246774,-1739.36,0.00011367,2]
[348189905,1736374246783,-531.02,0.00011367,2]
[348189907,1736374246792,-671.25,0.00011367,2]
[348189909,1736374246802,-500.0,0.00011368,2]
[348189911,1736374246811,-500.0,0.00011368,2]
[348189913,1736374246820,-500.0,0.00011368,2]
[348189915,1736374246829,-500.0,0.00011368,2]
[348189917,1736374246838,-500.0,0.00011368,2]
[348189919,1736374246847,-603.56726978,0.00011368,2]
[348189921,1736374246856,-500.0,0.00011368,2]
[348189923,1736374246866,-500.0,0.00011368,2]
[348189925,1736374246876,-527.34735687,0.00011368,2]
[348189927,1736374246885,-500.0,0.00011368,2]
[348189930,1736374246895,-500.0,0.00011368,2]
[348189931,1736374246904,-519.8,0.00011368,2]
[348189933,1736374246914,-500.0,0.00011368,2]
[348189936,1736374246923,-500.0,0.00011368,2]
[348189938,1736374246932,-500.0,0.00011368,2]
[348189940,1736374246942,-614.24,0.00011368,2]
[348189941,1736374246951,-233.60518025,0.00011368,2]
[348189944,1736374246961,-500.0,0.00011368,2]
[348189945,1736374246970,-500.0,0.00011368,2]
[348189948,1736374246980,-381.71680311,0.00011368,2]
[348189949,1736374246989,-500.0,0.00011368,2]
[348189951,1736374246998,-507.8,0.00011368,2]
[348189954,1736374247008,-404.3320087,0.00011368,2]
[348189955,1736374247017,-500.0,0.00011368,2]
[348189958,1736374247027,-582.56,0.00011368,2]
[348189959,1736374247036,-598.967199,0.00011368,2]
[348189961,1736374247046,-500.0,0.00011368,2]
[348189963,1736374247055,-500.0,0.00011368,2]
[348189965,1736374247064,-631.1601043,0.00011368,2]
[348189967,1736374247074,-595.62,0.00011368,2]
[348189969,1736374247084,-500.0,0.00011368,2]
[348189971,1736374247092,-500.0,0.00011368,2]
[348189973,1736374247102,-245.35841347,0.00011368,2]
[348189975,1736374247111,-604.327869,0.00011368,2]
[348189977,1736374247121,-500.0,0.00011368,2]
[348189979,1736374247131,-985.85,0.00011368,2]
[348189981,1736374247140,-500.0,0.00011368,2]
[348189983,1736374247149,-500.0,0.00011368,2]
[348189985,1736374247159,-500.0,0.00011368,2]
[348189987,1736374247169,-500.0,0.00011368,2]
[348189989,1736374247178,-500.0,0.00011368,2]
[348189991,1736374247188,-500.0,0.00011368,2]
[348189993,1736374247198,-500.0,0.00011368,2]
[348189995,1736374247207,-500.0,0.00011368,2]
[348189997,1736374247217,-500.0,0.00011368,2]
[348189999,1736374247226,-500.0,0.00011368,2]
[348190002,1736374247236,-500.0,0.00011368,2]
[348190004,1736374247245,-500.0,0.00011368,2]
[348190006,1736374247255,-500.0,0.00011368,2]
[348190008,1736374247264,-500.0,0.00011368,2]
[348190010,1736374247273,-500.0,0.00011368,2]
[348190012,1736374247282,-500.0,0.00011368,2]
[348190014,1736374247293,-500.0,0.00011368,2]
[348190016,1736374247303,-2012.04,0.00011368,2]
[348190018,1736374247312,-500.0,0.00011368,2]
[348190020,1736374247322,-504.51748111,0.00011368,2]
[348190022,1736374247331,-440.57,0.00011368,2]
[348190024,1736374247339,-509.2,0.00011368,2]
[348190026,1736374247349,-500.0,0.00011368,2]
[348190028,1736374247358,-500.0,0.00011368,2]
[348190030,1736374247367,-508.27,0.00011368,2]
[348190032,1736374247376,-555.17,0.00011368,2]
[348190034,1736374247385,-614.77,0.00011368,2]
[348190036,1736374247395,-500.0,0.00011368,2]
[348190038,1736374247404,-500.0,0.00011368,2]
[348190040,1736374247413,-500.0,0.00011368,2]
[348190041,1736374247422,-500.0,0.00011368,2]
[348190043,1736374247431,-2650.73,0.00011368,2]
[348190046,1736374247442,-500.0,0.00011368,2]
[348190047,1736374247452,-500.0,0.00011368,2]
[348190049,1736374247461,-814.33,0.00011368,2]
[348190051,1736374247470,-500.0,0.00011368,2]
[348190053,1736374247479,-500.0,0.00011368,2]
[348190056,1736374247489,-2244.55,0.00011368,2]
[348190058,1736374247498,-500.0,0.00011368,2]
[348190060,1736374247507,-1475.16,0.00011368,2]
[348190062,1736374247516,-500.0,0.00011368,2]
[348190064,1736374247525,-618.95,0.00011368,2]
[348190065,1736374247534,-500.0,0.00011368,2]
[348190067,1736374247543,-1755.78,0.00011368,2]
[348190070,1736374247553,-500.0,0.00011368,2]
[348190071,1736374247562,-1285.61,0.00011368,2]
[348190074,1736374247577,-2478.11,0.00011368,2]
[348190076,1736374247586,-500.0,0.00011368,2]
[348190078,1736374247596,-1061.59,0.00011368,2]
[348190080,1736374247605,-500.0,0.00011368,2]
[348190082,1736374247616,-500.0,0.00011368,2]
[348190084,1736374247626,-500.0,0.00011368,2]
[348190086,1736374247635,-500.0,0.00011368,2]
[348190088,1736374247644,-500.0,0.00011368,2]
[348190090,1736374247654,-687.93,0.00011368,2]
[348190092,1736374247664,-500.0,0.00011368,2]
[348190094,1736374247673,-1106.22,0.00011368,2]
[348190096,1736374247682,-500.0,0.00011368,2]
[348190098,1736374247693,-2314.79,0.00011368,2]
[348190100,1736374247701,-500.0,0.00011368,2]
[348190102,1736374247710,-500.0,0.00011368,2]
[348190104,1736374247719,-500.0,0.00011368,2]
[348190105,1736374247728,-500.0,0.00011368,2]
[348190108,1736374247738,-500.0,0.00011368,2]
[348190109,1736374247746,-500.0,0.00011368,2]
[348190111,1736374247755,-500.0,0.00011368,2]
[348190114,1736374247765,-703.34,0.00011368,2]
[348190116,1736374247774,-500.0,0.00011368,2]
[348190118,1736374247784,-503.53,0.00011368,2]
[348190120,1736374247794,-857.32,0.00011368,2]
[348190122,1736374247804,-500.0,0.00011368,2]
[348190124,1736374247814,-500.0,0.00011368,2]
[348190126,1736374247827,-1578.04,0.00011368,2]
[348190128,1736374247837,-598.80358881,0.00011368,2]
[348190130,1736374247847,-500.0,0.00011368,2]
[348190132,1736374247857,-243.73154811,0.00011368,2]
[348190134,1736374247867,-1098.41,0.00011368,2]
[348190136,1736374247876,-500.0,0.00011368,2]
[348190138,1736374247887,-500.0,0.00011368,2]
[348190140,1736374247896,-500.0,0.00011368,2]
[348190142,1736374247906,-1348.88,0.00011368,2]
[348190144,1736374247915,-500.0,0.00011368,2]
[348190146,1736374247925,-500.0,0.00011368,2]
[348190148,1736374247936,-500.0,0.00011368,2]
[348190150,1736374247945,-566.61,0.00011368,2]
[348190152,1736374247955,-837.69,0.00011369,2]
[348190154,1736374247964,-1266.37,0.00011369,2]
[348190156,1736374247974,-500.0,0.00011369,2]
[348190158,1736374247983,-787.11,0.00011369,2]
[348190160,1736374247993,-500.0,0.00011369,2]
[348190162,1736374248003,-1166.62,0.00011369,2]
[348190164,1736374248012,-500.0,0.00011369,2]
[348190166,1736374248022,-565.92,0.00011369,2]
[348190168,1736374248032,-519.1,0.00011369,2]
[348190170,1736374248042,-500.0,0.00011369,2]
[348190172,1736374248051,-508.78,0.00011369,2]
[348190174,1736374248061,-500.0,0.00011369,2]
[348190176,1736374248071,-500.0,0.00011369,2]
[348190178,1736374248081,-500.0,0.00011369,2]
[348190180,1736374248091,-1205.93,0.00011369,2]
[348190182,1736374248101,-500.0,0.00011369,2]
[348190184,1736374248112,-500.0,0.00011369,2]
[348190186,1736374248121,-712.18,0.00011369,2]
[348190188,1736374248131,-500.0,0.00011369,2]
[348190190,1736374248140,-500.0,0.00011369,2]
[348190192,1736374248150,-612.36,0.00011369,2]
[348190194,1736374248159,-500.0,0.00011369,2]
[348190196,1736374248169,-517.54,0.00011369,2]
[348190198,1736374248178,-595.66,0.00011369,2]
[348190200,1736374248189,-2799.24,0.00011369,2]
[348190202,1736374248200,-548.18,0.00011369,2]
[348190204,1736374248209,-1302.79,0.00011369,2]
[348190206,1736374248219,-500.0,0.00011369,2]
[348190208,1736374248229,-500.0,0.00011369,2]
[348190211,1736374248239,-1038.02,0.00011369,2]
[348190213,1736374248248,-1613.85,0.00011369,2]
[348190215,1736374248258,-500.0,0.00011369,2]
[348190217,1736374248267,-1455.22,0.00011369,2]
[348190219,1736374248276,-500.0,0.00011369,2]
[348190221,1736374248286,-2149.02,0.00011369,2]
[348190222,1736374248295,-1224.29,0.00011369,2]
[348190224,1736374248305,-4333.65,0.00011369,2]
[348190226,1736374248314,-1960.58,0.00011369,2]
[348190228,1736374248324,-1063.62,0.00011369,2]
[348190229,1736374248333,-568.79,0.00011369,2]
[348190230,1736374248343,-2372.76,0.00011369,2]
[348190231,1736374248353,-500.0,0.00011369,2]
[348190232,1736374248363,-1185.4,0.00011369,2]
[348190233,1736374248372,-1874.57,0.00011369,2]
[348190234,1736374248382,-1217.99,0.00011369,2]
[348190235,1736374248391,-500.0,0.00011369,2]
[348190237,1736374248400,-500.0,0.00011369,2]
[348190239,1736374248408,-920.56,0.00011369,2]
[348190241,1736374248417,-2562.5,0.00011369,2]
[348190243,1736374248427,-202.76042521,0.000114,2]
[348190245,1736374248437,-500.0,0.00011407,2]
[348190247,1736374248447,-684.21,0.00011407,2]
[348190249,1736374248457,-1105.88,0.00011407,2]
[348190251,1736374248466,-812.69,0.00011407,2]
[348190253,1736374248476,-887.64,0.00011407,2]
[348190255,1736374248486,-500.0,0.00011407,2]
[348190257,1736374248495,-1000.0,0.00011407,2]
[348190259,1736374248504,-500.0,0.00011408,2]
[348190261,1736374248515,-1745.65,0.00011408,2]
[348190263,1736374248524,-1254.01,0.00011408,2]
[348190265,1736374248534,-2751.0,0.00011507,2]
[348190267,1736374248543,-150.0,0.00011516,2]
[348190269,1736374248552,-566.0,0.00011516,2]
[348190271,1736374248562,-634.0,0.00011516,2]
[348190273,1736374248572,-1860.0,0.00011516,2]
[348190275,1736374248584,-819.0,0.00011516,2]
[348190277,1736374248593,-1258.0,0.00011516,2]
[348190279,1736374248603,-915.0,0.00011516,2]
[348190281,1736374248612,-1117.854,0.00011516,2]
[348190284,1736374248623,-537.0,0.00011516,2]
[348190286,1736374248633,-1173.0,0.00011516,2]
[348190288,1736374248643,-9621.0,0.00011516,2]
[348190290,1736374248655,-3895.0,0.00011516,2]
[348190292,1736374248665,-150.0,0.00011516,2]
[348190294,1736374248674,-202.76042521,0.00011567,2]
[348190296,1736374248684,-500.0,0.00011641,2]
[348190298,1736374248694,-500.0,0.00011641,2]
[348190300,1736374248704,-500.0,0.00011641,2]
[348190302,1736374248713,-1184.83,0.00011641,2]
[348190304,1736374248723,-2822.92,0.00011641,2]
[348190306,1736374248732,-791.42,0.00011641,2]
[348190308,1736374248741,-604.89,0.00011641,2]
[348190310,1736374248751,-500.0,0.00011641,2]
[348190312,1736374248760,-500.0,0.00011641,2]
[348190314,1736374248770,-2124.34,0.00011641,2]
[348190316,1736374248780,-1365.63,0.00011641,2]
[348190318,1736374248789,-500.0,0.00011641,2]
[348190320,1736374248799,-2596.48,0.00011641,2]
[348190322,1736374248809,-689.69,0.00011641,2]
[348190324,1736374248819,-500.0,0.00011641,2]
[348190326,1736374248828,-500.0,0.00011641,2]
[348190328,1736374248837,-1399.1,0.00011641,2]
[348190330,1736374248847,-816.75,0.00011641,2]
[348190332,1736374248857,-838.45,0.00011641,2]
[348190334,1736374248867,-1739.36,0.00011641,2]
[348190336,1736374248877,-531.02,0.00011641,2]
[348190338,1736374248887,-500.0,0.00011642,2]
[348190340,1736374248897,-500.0,0.00011642,2]
[348190342,1736374248907,-558.38754192,0.00011642,2]
[348190344,1736374248916,-500.0,0.00011642,2]
[348190347,1736374248926,-500.0,0.00011642,2]
[348190348,1736374248937,-530.85,0.00011642,2]
[348190350,1736374248947,-334.6,0.00011642,2]
[348190353,1736374248957,-500.0,0.00011642,2]
[348190355,1736374248967,-519.8,0.00011642,2]
[348190357,1736374248976,-500.0,0.00011642,2]
[348190359,1736374248986,-500.0,0.00011642,2]
[348190361,1736374248995,-500.0,0.00011642,2]
[348190363,1736374249005,-614.24,0.00011642,2]
[348190365,1736374249014,-500.0,0.00011642,2]
[348190367,1736374249024,-500.0,0.00011642,2]
[348190369,1736374249033,-500.0,0.00011642,2]
[348190371,1736374249043,-507.8,0.00011642,2]
[348190373,1736374249053,-500.0,0.00011642,2]
[348190375,1736374249063,-582.56,0.00011642,2]
[348190377,1736374249072,-500.0,0.00011642,2]
[348190379,1736374249082,-598.967199,0.00011642,2]
[348190380,1736374249091,-500.0,0.00011642,2]
[348190383,1736374249101,-595.62,0.00011642,2]
[348190385,1736374249111,-500.0,0.00011642,2]
[348190386,1736374249121,-500.0,0.00011642,2]
[348190388,1736374249131,-604.327869,0.00011642,2]
[348190391,1736374249141,-500.0,0.00011642,2]
[348190393,1736374249151,-985.85,0.00011642,2]
[348190395,1736374249161,-500.0,0.00011642,2]
[348190397,1736374249171,-500.0,0.00011642,2]
[348190399,1736374249181,-500.0,0.00011642,2]
[348190401,1736374249195,-500.0,0.00011642,2]
[348190403,1736374249205,-500.0,0.00011642,2]
[348190405,1736374249214,-500.0,0.00011642,2]
[348190407,1736374249224,-500.0,0.00011642,2]
[348190409,1736374249234,-500.0,0.00011642,2]
[348190411,1736374249243,-500.0,0.00011642,2]
[348190413,1736374249254,-500.0,0.00011642,2]
[348190415,1736374249264,-500.0,0.00011642,2]
[348190416,1736374249273,-500.0,0.00011642,2]
[348190418,1736374249283,-500.0,0.00011642,2]
[348190420,1736374249293,-500.0,0.00011642,2]
[348190422,1736374249302,-500.0,0.00011642,2]
[348190423,1736374249312,-500.0,0.00011642,2]
[348190425,1736374249322,-500.0,0.00011642,2]
[348190427,1736374249331,-2012.04,0.00011642,2]
[348190429,1736374249341,-500.0,0.00011642,2]
[348190430,1736374249351,-509.2,0.00011642,2]
[348190432,1736374249362,-500.0,0.00011642,2]
[348190434,1736374249372,-596.40219336,0.00011642,2]
[348190436,1736374249382,-555.17,0.00011642,2]
[348190437,1736374249392,-500.0,0.00011642,2]
[348190439,1736374249402,-500.0,0.00011642,2]
[348190441,1736374249412,-500.0,0.00011642,2]
[348190443,1736374249422,-2650.73,0.00011642,2]
[348190445,1736374249432,-500.0,0.00011642,2]
[348190446,1736374249444,-500.0,0.00011642,2]
[348190448,1736374249454,-814.33,0.00011642,2]
[348190450,1736374249464,-500.0,0.00011642,2]
[348190451,1736374249474,-500.0,0.00011642,2]
[348190453,1736374249484,-2244.55,0.00011642,2]
[348190455,1736374249494,-500.0,0.00011642,2]
[348190457,1736374249505,-1475.16,0.00011642,2]
[348190459,1736374249514,-500.0,0.00011642,2]
[348190460,1736374249524,-618.95,0.00011642,2]
[348190462,1736374249534,-500.0,0.00011642,2]
[348190464,1736374249543,-1755.78,0.00011642,2]
[348190466,1736374249552,-500.0,0.00011642,2]
[348190468,1736374249562,-1285.61,0.00011642,2]
[348190469,1736374249573,-2478.11,0.00011642,2]
[348190471,1736374249586,-500.0,0.00011642,2]
[348190473,1736374249596,-1061.59,0.00011642,2]
[348190475,1736374249606,-500.0,0.00011642,2]
[348190477,1736374249618,-500.0,0.00011642,2]
[348190479,1736374249628,-500.0,0.00011642,2]
[348190480,1736374249638,-619.29,0.00011642,2]
[348190482,1736374249648,-500.0,0.00011642,2]
[348190484,1736374249660,-687.93,0.00011642,2]
[348190486,1736374249670,-500.0,0.00011642,2]
[348190488,1736374249679,-500.0,0.00011642,2]
[348190489,1736374249690,-1106.22,0.00011642,2]
[348190491,1736374249700,-2314.79,0.00011642,2]
[348190493,1736374249709,-500.0,0.00011642,2]
[348190495,1736374249719,-500.0,0.00011642,2]
[348190497,1736374249729,-500.0,0.00011642,2]
[348190499,1736374249738,-1752.27,0.00011642,2]
[348190500,1736374249748,-500.0,0.00011642,2]
[348190502,1736374249758,-500.0,0.00011642,2]
[348190504,1736374249767,-500.0,0.00011642,2]
[348190506,1736374249777,-500.0,0.00011642,2]
[348190507,1736374249787,-703.34,0.00011642,2]
[348190509,1736374249796,-500.0,0.00011642,2]
[348190511,1736374249805,-503.53,0.00011642,2]
[348190513,1736374249815,-500.0,0.00011642,2]
[348190515,1736374249825,-857.32,0.00011642,2]
[348190516,1736374249835,-500.0,0.00011642,2]
[348190518,1736374249845,-1302.08,0.00011642,2]
[348190520,1736374249855,-1578.04,0.00011642,2]
[348190522,1736374249865,-500.0,0.00011642,2]
[348190524,1736374249875,-1098.41,0.00011642,2]
[348190526,1736374249885,-500.0,0.00011642,2]
[348190528,1736374249896,-500.0,0.00011642,2]
[348190530,1736374249906,-487.26,0.00011642,2]
[348190532,1736374249917,-1348.88,0.00011642,2]
[348190534,1736374249927,-649.72,0.00011642,2]
[348190536,1736374249937,-500.0,0.00011642,2]
[348190538,1736374249947,-2453.48,0.00011642,2]
[348190539,1736374249956,-500.0,0.00011642,2]
[348190541,1736374249966,-566.61,0.00011642,2]
[348190557,1736374250136,-837.69,0.00011643,2]
[348190559,1736374250148,-1266.37,0.00011643,2]
[348190560,1736374250158,-500.0,0.00011643,2]
[348190562,1736374250168,-787.11,0.00011643,2]
[348190564,1736374250178,-500.0,0.00011643,2]
[348190566,1736374250188,-1166.62,0.00011643,2]
[348190568,1736374250197,-500.0,0.00011643,2]
[348190570,1736374250207,-565.92,0.00011643,2]
[348190571,1736374250216,-519.1,0.00011643,2]
[348190573,1736374250226,-500.0,0.00011643,2]
[348190575,1736374250236,-508.78,0.00011643,2]
[348190577,1736374250245,-500.0,0.00011643,2]
[348190579,1736374250254,-500.0,0.00011643,2]
[348190580,1736374250263,-500.0,0.00011643,2]
[348190582,1736374250273,-1205.93,0.00011643,2]
[348190584,1736374250283,-500.0,0.00011643,2]
[348190586,1736374250293,-500.0,0.00011643,2]
[348190589,1736374250303,-712.18,0.00011643,2]
[348190591,1736374250313,-500.0,0.00011643,2]
[348190592,1736374250322,-500.0,0.00011643,2]
[348190595,1736374250333,-638.99,0.00011643,2]
[348190597,1736374250343,-612.36,0.00011643,2]
[348190598,1736374250356,-500.0,0.00011643,2]
[348190599,1736374250366,-595.66,0.00011643,2]
[348190600,1736374250376,-2799.24,0.00011643,2]
[348190601,1736374250385,-548.18,0.00011643,2]
[348190602,1736374250395,-1302.79,0.00011643,2]
[348190603,1736374250405,-500.0,0.00011643,2]
[348190604,1736374250414,-500.0,0.00011643,2]
[348190605,1736374250424,-1038.02,0.00011643,2]
[348190606,1736374250434,-1613.85,0.00011643,2]